lending/lending_fUSD_20250315
["ID","MTS","AMOUNT","RATE_DAILY","PERIOD"]
[356168912,1741997112926,708.56,9.221e-05,2]
[356168919,1741997432430,-4037.10864548,9.751e-05,2]
[356168920,1741997432444,-2609.49592439,9.751e-05,2]
[356168921,1741997432455,-1681.66267113,9.751e-05,2]
[356168922,1741997432464,-6958.2424,9.8e-05,2]
[356168923,1741997432474,-1013.0,9.881e-05,2]
[356168924,1741997432483,-151.0,9.881e-05,2]
[356168925,1741997432492,-598.48215439,9.881e-05,2]
[356168926,1741997432596,-1000.09,9.881e-05,2]
[356168927,1741997432660,-2335.42784561,9.881e-05,2]
[356168928,1741997432672,-150.0,9.899e-05,2]
[356168929,1741997432685,-63.51395957,9.899e-05,2]
[356168930,1741997432699,-121.08788076,9.899e-05,2]
[356168931,1741997432709,-323.81312941,9.899e-05,2]
[356168932,1741997432767,-226.18687059,9.899e-05,2]
[356168933,1741997432777,-150.0,9.899e-05,2]
[356168934,1741997432787,-9289.9546,9.9e-05,2]
[356168935,1741997432797,-2759.8177,9.9e-05,2]
[356168936,1741997432806,-453.8216,9.9e-05,2]
[356168937,1741997432816,-1000.0,9.9e-05,2]
[356168938,1741997432826,-600.6013,9.9e-05,2]
[356168939,1741997432836,-1524.639,9.9e-05,2]
[356168940,1741997432846,-150.0,9.917e-05,2]
[356168941,1741997432856,-245.67,9.959e-05,2]
[356168942,1741997432866,-1279.0,9.959e-05,2]
[356168943,1741997432876,-2033.0,9.959e-05,2]
[356168944,1741997432887,-641.0,9.959e-05,2]
[356168945,1741997432897,-571.0,9.959e-05,2]
[356168946,1741997432908,-1418.0,9.959e-05,2]
[356168947,1741997432918,-786.0,9.959e-05,2]
[356168948,1741997432928,-1271.0,9.959e-05,2]
[356168949,1741997432938,-541.0,9.959e-05,2]
[356168950,1741997432949,-907.0,9.959e-05,2]
[356168951,1741997432959,-702.29473326,9.959e-05,2]
[356168952,1741997432972,-725.70526674,9.959e-05,2]
[356168953,1741997432982,-4078.0,9.959e-05,2]
[356168954,1741997432992,-1000.0,9.972e-05,2]
[356168955,1741997433002,-1686.0,9.973e-05,2]
[356168956,1741997433013,-931.9417224,9.998e-05,2]
[356168957,1741997433023,-8162.3845613,9.998e-05,2]
[356168959,1741997433033,-214.1673856,9.998e-05,2]
[356168961,1741997433042,-500.0,9.999e-05,2]
[356168963,1741997433052,-500.0,9.999e-05,2]
[356168965,1741997433062,-869.28,9.999e-05,2]
[356168967,1741997433073,-658.0,0.0001,2]
[356168969,1741997433083,-1880.55,0.0001,2]
[356168970,1741997433093,-2869.02,0.0001,2]
[356168971,1741997433102,-36.94966559,0.0001,2]
[356168972,1741997433114,-301.76,0.0001,2]
[356168983,1741997438393,-499.76289851,0.0001,2]
[356168985,1741997438458,-740.75,0.0001,2]
[356168986,1741997438471,-900.08457671,0.0001,2]
[356168987,1741997438583,-1114.0,9.881e-05,2]
[356168988,1741997438594,-801.21598898,0.0001,2]
[356168989,1741997438606,-1181.0,0.0001,2]
[356168990,1741997438617,-1069.36,0.0001,2]
[356168991,1741997438631,-458.84855654,0.0001,2]
[356168992,1741997440489,-1244.47253538,0.0001,2]
[356168993,1741997440668,-1754.8557159,0.0001,2]
[356168994,1741997440786,-7280.57006239,0.0001,2]
[356168995,1741997441084,-365.31554563,0.0001,2]
[356168996,1741997441094,-75010.94909184,0.0001,2]
[356168997,1741997441104,-407580.94004524,0.0001,2]
[356168998,1741997441126,-16843.65693022,0.0001,2]
[356168999,1741997441138,-3330.14103743,0.0001,2]
[356169000,1741997441149,-656.14,0.0001,2]
[356169005,1741997444377,-589.0,0.0001,2]
[356169006,1741997444390,-374.26849218,0.0001,2]
[356169007,1741997444403,-475.6752,0.0001,2]
[356169008,1741997444423,-5336.7,0.0001,2]
[356169016,1741997446394,-4438.8349051,0.0001,2]
[356169017,1741997446406,-10304.44267007,0.0001,2]
[356169018,1741997446418,-16063.12075753,0.0001,2]
[356169019,1741997446429,-4222.94617347,0.0001,2]
[356169020,1741997446571,-127648.03250844,0.0001,2]
[356169021,1741997446583,-74697.54790643,0.0001,2]
[356169022,1741997446594,-24591.14918466,0.0001,2]
[356169023,1741997446630,-259.43931699,0.0001,2]
[356169024,1741997446693,-842.172,0.0001,2]
[356169025,1741997446704,-13238.32937909,0.0001,2]
[356169026,1741997446716,-1126.79000415,0.0001,2]
[356169027,1741997505647,500.0,9.5e-05,3]
[356169028,1741997686518,250.0,9e-05,2]
[356169029,1741997779452,797.31,8.219e-05,2]
[356169030,1741997819174,175.25,9.176e-05,2]
[356169031,1741997820370,175.25,9.2e-05,2]
[356169032,1741997820409,175.25,9.224e-05,2]
[356169033,1741997820448,175.25,9.248e-05,2]
[356169034,1741997820620,175.25,9.272e-05,2]
[356169035,1741997820844,175.25,9.296e-05,2]
[356169036,1741997821065,175.25,9.321e-05,2]
[356169037,1741997821285,175.25,9.345e-05,2]
[356169038,1741997821484,175.25,9.369e-05,2]
[356169039,1741997821687,175.25,9.393e-05,2]
[356169040,1741997821923,175.25,9.417e-05,2]
[356169041,1741997822126,175.25,9.441e-05,2]
[356169042,1741997822374,175.25,9.465e-05,2]
[356169043,1741997822596,175.25,9.49e-05,2]
[356169044,1741997822800,175.25,9.514e-05,2]
[356169045,1741997823005,175.25,9.538e-05,2]
[356169046,1741997823223,175.25,9.562e-05,2]
[356169048,1741997869910,157.62,9.199e-05,2]
[356169049,1741998013758,176.09,9.442e-05,2]
[356169050,1741998249899,150.0,9.562e-05,7]
[356169051,1741998366705,187.18,9.277e-05,2]
[356169054,1741998402923,1000.0,9.274e-05,2]
[356169055,1741998421185,800.0,9e-05,2]
[356169056,1741998426043,400.0,9.5e-05,3]
[356169057,1741998463653,150.58,9.538e-05,2]
[356169058,1741998509447,700.0,9e-05,2]
[356169064,1741998552775,383.0,0.0002,120]
[356169074,1741998631685,-175.25,9.586e-05,2]
[356169075,1741998631695,-76.885,9.588e-05,2]
[356169076,1741998631708,-73.115,9.588e-05,2]
[356169077,1741998631718,-150.0,9.597e-05,2]
[356169078,1741998631727,-181.80761432,9.6e-05,3]
[356169079,1741998631738,-718.19238568,9.6e-05,3]
[356169080,1741998631749,-175.25,9.61e-05,2]
[356169081,1741998631758,-343.0212704,9.634e-05,2]
[356169082,1741998631899,-310.73711255,9.634e-05,2]
[356169083,1741998631909,-175.25,9.634e-05,2]
[356169084,1741998631918,-1400.0,9.7e-05,3]
[356169085,1741998631927,-1900.0,9.8e-05,3]
[356169086,1741998631935,-653.75838294,9.8e-05,2]
[356169087,1741998631944,-2500.0,9.9e-05,2]
[356169088,1741998631953,-2500.0,9.9e-05,2]
[356169089,1741998631962,-2400.0,9.9e-05,3]
[356169090,1741998631972,-250.0,9.935e-05,2]
[356169091,1741998631981,-641.0,9.959e-05,2]
[356169092,1741998631990,-1418.0,9.959e-05,2]
[356169093,1741998631999,-571.0,9.959e-05,2]
[356169094,1741998632008,-786.0,9.959e-05,2]
[356169095,1741998632017,-1428.0,9.959e-05,2]
[356169096,1741998632026,-1267.0,9.959e-05,2]
[356169097,1741998632036,-4078.0,9.959e-05,2]
[356169098,1741998632046,-541.0,9.959e-05,2]
[356169099,1741998632055,-907.0,9.959e-05,2]
[356169100,1741998632064,-1114.0,9.959e-05,2]
[356169101,1741998632073,-643.0,9.959e-05,2]
[356169102,1741998632082,-3934.0,9.959e-05,2]
[356169103,1741998632091,-1279.0,9.959e-05,2]
[356169104,1741998632102,-500.0,9.973e-05,2]
[356169105,1741998632112,-172.65764838,9.999e-05,2]
[356169106,1741998632121,-833.06,9.999e-05,2]
[356169107,1741998632130,-326.20733695,0.0001,2]
[356169108,1741998632139,-67838.29479324,0.0001,2]
[356169281,1741998637491,-151.0,9.959e-05,2]
[356169282,1741998637502,-151.49291111,0.0001,2]
[356169283,1741998637548,-10107.50030369,0.0001,2]
[356169284,1741998637560,-7155.67504488,0.0001,2]
[356169285,1741998637572,-420.7117,0.0001,2]
[356169286,1741998637609,-525.28125,0.0001,2]
[356169287,1741998637621,-2655.42873001,0.0001,2]
[356169288,1741998637667,-1815.14168278,0.0001,2]
[356169304,1741998639719,-574.80859744,0.0001,2]
[356169305,1741998639775,-6243.072282,0.0001,2]
[356169306,1741998639787,-23117.55137062,0.0001,2]
[356169307,1741998639798,-30827.61762071,0.0001,2]
[356169308,1741998639808,-39885.08018214,0.0001,2]
[356169309,1741998639831,-684.66897175,0.0001,2]
[356169310,1741998639844,-1067.1,0.0001,2]
[356169311,1741998639856,-469.28974343,0.0001,2]
[356169312,1741998639890,-420.225,0.0001,2]
[356169313,1741998639902,-1903.25712109,0.0001,2]
[356169314,1741998639914,-1898.39,0.0001,2]
[356169315,1741998640003,-2033.0,9.959e-05,2]
[356169316,1741998640014,-1041.45423233,0.0001,2]
[356169317,1741998640025,-6951.62015765,0.0001,2]
[356169318,1741998640038,-431.97,0.0001,2]
[356169319,1741998640115,-523.59121459,0.0001,2]
[356169328,1741998642650,-33059.60094819,0.0001,2]
[356169329,1741998642663,-5503.12715141,0.0001,2]
[356169330,1741998642679,-252.87196491,0.0001,2]
[356169331,1741998642706,-2955.77079881,0.0001,2]
[356169332,1741998642718,-383.20020393,0.0001,2]
[356169333,1741998642734,-15893.83400904,0.0001,2]
[356169334,1741998642767,-2248.33419155,0.0001,2]
[356169335,1741998643302,-1050.5625,0.0001,2]
[356169344,1741998646095,-4229.943,0.0001,2]
[356169345,1741998646107,-692.17038355,0.0001,2]
[356169346,1741998646119,-569.40613175,0.0001,2]
[356169347,1741998646130,-269.24704914,0.0001,2]
[356169348,1741998646142,-1208.0,0.0001,2]
[356169349,1741998646153,-421.5799658,0.0001,2]
[356169350,1741998646164,-45564.82416196,0.0001,2]
[356169351,1741998646176,-3999.6859471,0.0001,2]
[356169352,1741998646187,-42316.0,0.0001,2]
[356169353,1741998646201,-1384.88252697,0.0001,2]
[356169354,1741998646212,-2866.08229076,0.0001,2]
[356169355,1741998646223,-1024.15,0.0001,2]
[356169358,1741998960460,757.44,8.219e-05,2]
[356169359,1741999423119,566.84,9.264e-05,2]
[356169360,1741999524329,250.0,9e-05,2]
[356169370,1741999765877,2402.644177,9.525e-05,2]
[356169371,1741999766387,546.29,9.244e-05,2]
[356169372,1741999781293,800.0,3e-07,2]
[356169373,1741999787728,800.0,3e-07,2]
[356169374,1741999791872,800.0,3e-07,2]
[356169375,1741999797625,800.0,3e-07,2]
[356169377,1741999831834,-500.0,9.573e-05,2]
[356169378,1741999831844,-150.0,9.958e-05,2]
[356169379,1741999831855,-194.72166514,9.958e-05,2]
[356169380,1741999831864,-300.0,9.958e-05,2]
[356169381,1741999831874,-150.0,9.958e-05,2]
[356169382,1741999831884,-46.95633506,9.959e-05,2]
[356169383,1741999831999,-278.70006018,9.959e-05,2]
[356169384,1741999832057,-903.30512696,9.959e-05,2]
[356169385,1741999832070,-50.0384778,9.959e-05,2]
[356169386,1741999832080,-746.65639524,9.959e-05,2]
[356169387,1741999832167,-1286.34360476,9.959e-05,2]
[356169388,1741999832178,-641.0,9.959e-05,2]
[356169389,1741999832188,-1.45639524,9.959e-05,2]
[356169487,1741999837865,-569.54360476,9.959e-05,2]
[356169488,1741999837875,-1418.0,9.959e-05,2]
[356169489,1741999837884,-786.0,9.959e-05,2]
[356169500,1741999838193,-2828.197,9.959e-05,2]
[356169503,1741999838215,-3934.0,9.959e-05,2]
[356169505,1741999838225,-151.0,9.959e-05,2]
[356169507,1741999838235,-788.475,9.959e-05,2]
[356169509,1741999838244,-150.0,9.969e-05,2]
[356169511,1741999838253,-160.27983232,9.973e-05,2]
[356169513,1741999838263,-151.36134132,9.973e-05,2]
[356169515,1741999838272,-208.70758529,9.973e-05,2]
[356169517,1741999838282,-3948.5903644,9.995e-05,2]
[356169519,1741999838291,-1152.5574349,9.995e-05,2]
[356169521,1741999838300,-386.0060691,9.995e-05,2]
[356169523,1741999838310,-154.9501035,9.995e-05,2]
[356169525,1741999838319,-1219.711,9.999e-05,2]
[356169527,1741999838328,-798.35,9.999e-05,2]
[356169529,1741999838337,-10017.77351038,0.0001,2]
[356169708,1741999840030,-150.0,9.959e-05,2]
[356169711,1741999840040,-708.6551354,0.0001,2]
[356169713,1741999840053,-1923.37274777,0.0001,2]
[356169714,1741999840067,-941.39860645,0.0001,2]
[356169716,1741999840077,-163.10366847,0.0001,2]
[356169718,1741999840086,-6809.55981228,0.0001,2]
[356169720,1741999840098,-2428.0715722,0.0001,2]
[356169722,1741999840109,-2122.48179139,0.0001,2]
[356169725,1741999840121,-300.41114992,0.0001,2]
[356169727,1741999840146,-815.45289216,0.0001,2]
[356169729,1741999840158,-2254.030016,0.0001,2]
[356169732,1741999840169,-797.6518777,0.0001,2]
[356169742,1741999840260,-3865.11448791,0.0001,2]
[356169744,1741999840272,-388.86363569,0.0001,2]
[356170016,1741999842948,-3074.99201374,0.0001,2]
[356170127,1741999844050,-52859.65889425,0.0001,2]
[356170130,1741999844064,-1507333.32619014,0.0001,2]
[356170131,1741999844074,-1000.0,0.0001,2]
[356170134,1741999844085,-1332556.49969582,0.0001,2]
[356170288,1741999846330,-1222.17780059,0.0001,2]
[356170289,1741999846343,-53407.18860227,0.0001,2]
[356170290,1741999846355,-4349.34869321,0.0001,2]
[356170291,1741999846367,-832.193085,0.0001,2]
[356170292,1741999846378,-784.9815,0.0001,2]
[356170293,1741999846390,-1414.157248,0.0001,2]
[356170294,1741999846402,-578.3824,0.0001,2]
[356170295,1741999846413,-985.4997183,0.0001,2]
[356170296,1741999846425,-472.95900005,0.0001,2]
[356170297,1741999846436,-778.804,0.0001,2]
[356170298,1741999846447,-791.04625,0.0001,2]
[356170303,1741999935305,1725.45,9.542e-05,2]
[356170305,1741999964863,200.0,9.478e-05,2]
[356170306,1741999979701,6906.83,9.479e-05,2]
[356170307,1741999980343,778.09,8.219e-05,2]
[356170311,1742000094400,3811.84,9.18e-05,2]
[356170312,1742000108516,488.05,9.18e-05,2]
[356170313,1742000143270,2000.0,9.473e-05,2]
[356170315,1742000304506,1000.0,9.473e-05,2]
[356170316,1742000332846,178.17,9.473e-05,2]
[356170317,1742000354861,1852.42,9.471e-05,2]
[356170318,1742000368615,2000.0,9.471e-05,2]
[356170319,1742000427741,1313.73,9.147e-05,2]
[356170320,1742000444755,181.5,9.422e-05,2]
[356170321,1742000464073,500.0,9.147e-05,2]
[356170322,1742000530931,309.74,9.129e-05,2]
[356170331,1742000581146,150.0,9.473e-05,2]
[356170332,1742000612397,3628.12,9.443e-05,2]
[356170333,1742000685235,399.18,9.473e-05,2]
[356170334,1742000719016,3147.92,9.481e-05,2]
[356170335,1742000743728,166.58,9.134e-05,2]
[356170338,1742000799673,3574.71,9.134e-05,2]
[356170339,1742000847625,3622.23,9.475e-05,2]
[356170340,1742000871178,250.0,9.475e-05,2]
[356170341,1742000883603,23900.0,9.478e-05,2]
[356170342,1742000894357,1500.0,9.486e-05,2]
[356170343,1742000937181,-150.0,9.899e-05,2]
[356170344,1742000937205,-300.0,9.899e-05,2]
[356170345,1742000937230,-150.0,9.899e-05,2]
[356170346,1742000937254,-550.0,9.899e-05,2]
[356170347,1742000937277,-9823.0,9.9e-05,2]
[356170348,1742000963907,252.31,9.496e-05,2]
[356170349,1742000964073,-4464.3166058,9.9e-05,2]
[356170350,1742000964104,-3633.03903232,9.9e-05,2]
[356170351,1742000964142,-4464.3166058,9.9e-05,2]
[356170355,1742000993125,794.76,8.219e-05,2]
[356170356,1742001022865,165.61,9.496e-05,2]
[356170360,1742001031963,-1729.18025608,9.9e-05,2]
[356170361,1742001031973,-614.26474392,9.9e-05,2]
[356170362,1742001031985,-2678.5220003,9.9e-05,2]
[356170363,1742001032027,-3032.76053173,9.9e-05,2]
[356170364,1742001032038,-3990.15972405,9.9e-05,2]
[356170365,1742001032048,-1300.0,9.9e-05,2]
[356170366,1742001032059,-150.0,9.911e-05,2]
[356170367,1742001032069,-277.3087137,9.911e-05,2]
[356170368,1742001032082,-272.6912863,9.911e-05,2]
[356170369,1742001032092,-975.769,9.923e-05,2]
[356170370,1742001032101,-150.0,9.959e-05,2]
[356170371,1742001032111,-150.0,9.959e-05,2]
[356170372,1742001032120,-1279.0,9.959e-05,2]
[356170373,1742001032131,-2033.0,9.959e-05,2]
[356170374,1742001032141,-500.78592143,9.973e-05,2]
[356170375,1742001032151,-539.7226213,9.973e-05,2]
[356170376,1742001032164,-3934.0,9.99e-05,2]
[356170377,1742001032174,-151.0,9.99e-05,2]
[356170378,1742001032184,-785.92,9.999e-05,2]
[356170379,1742001032192,-1132.3337672,9.999e-05,2]
[356170380,1742001032201,-85.77740377,9.999e-05,2]
[356170381,1742001032212,-414.22259623,9.999e-05,2]
[356170382,1742001032222,-143.41172879,9.999e-05,2]
[356170383,1742001032234,-9.23607531,9.999e-05,2]
[356170384,1742001032243,-2039.69621631,9.999e-05,2]
[356170385,1742001032255,-276.92936295,9.999e-05,2]
[356170386,1742001032267,-232.25716354,9.999e-05,2]
[356170387,1742001032276,-787.0,0.0001,2]
[356170388,1742001032285,-283.41038083,0.0001,2]
[356170389,1742001032296,-1259.53924608,0.0001,2]
[356170390,1742001032307,-5169.15229107,0.0001,2]
[356170400,1742001034108,6259.55,9.496e-05,2]
[356170402,1742001037908,-60.99808202,0.0001,2]
[356170403,1742001037918,-4987.42,0.0001,2]
[356170404,1742001037927,-257.76797172,0.0001,2]
[356170405,1742001037936,-54394.76716968,0.0001,2]
[356170406,1742001037946,-14359.04677658,0.0001,2]
[356170407,1742001038084,-608.0,0.0001,2]
[356170408,1742001038094,-237.73,0.0001,2]
[356170409,1742001038106,-589.97551441,0.0001,2]
[356170676,1742001040879,-23887.81767771,0.0001,2]
[356170678,1742001040891,-34490.97,0.0001,2]
[356170784,1742001043075,-501.112861,0.0001,2]
[356170785,1742001043135,-786.0282809,0.0001,2]
[356170786,1742001043414,-23973.95721219,0.0001,2]
[356171019,1742001046030,-544.0,0.0001,2]
[356171020,1742001046040,-58.84999774,0.0001,2]
[356171021,1742001046099,-2021.23258481,0.0001,2]
[356171022,1742001046110,-7201.90247,0.0001,2]
[356171023,1742001046219,-10471.784483,0.0001,2]
[356171028,1742001070585,-4000.0,0.0001028,3]
[356171029,1742001070610,-4000.0,0.0001043,3]
[356171030,1742001070634,-4000.0,0.0001059,3]
[356171031,1742001095832,2255.29,9.1e-05,2]
[356171032,1742001143330,-150.0,9.731e-05,2]
[356171033,1742001143396,-150.0,9.736e-05,2]
[356171034,1742001143420,-150.0,9.741e-05,2]
[356171035,1742001143442,-1000.0,9.759e-05,2]
[356171036,1742001143465,-1000.0,9.808e-05,2]
[356171037,1742001143489,-1000.0,9.823e-05,2]
[356171038,1742001143512,-10322.98282393,9.823e-05,2]
[356171039,1742001143534,-1000.0,9.833e-05,2]
[356171040,1742001143557,-150.0,9.899e-05,2]
[356171041,1742001143579,-256.842,9.9e-05,2]
[356171042,1742001143601,-267.5658,9.9e-05,2]
[356171043,1742001143623,-905.54,9.9e-05,2]
[356171044,1742001143647,-8899.44,9.9e-05,2]
[356171045,1742001143668,-3641.1881,9.9e-05,2]
[356171046,1742001143691,-718.6231,9.9e-05,2]
[356171047,1742001143713,-1000.0,9.9e-05,2]
[356171048,1742001143735,-6333.3697,9.9e-05,2]
[356171049,1742001143758,-150.0,9.937e-05,2]
[356171050,1742001143781,-150.0,9.948e-05,2]
[356171051,1742001143802,-231.18287586,9.957e-05,2]
[356171052,1742001143823,-1000.0,9.999e-05,2]
[356171053,1742001143845,-753.17,9.999e-05,2]
[356171054,1742001143868,-503.0,0.0001,2]
[356171055,1742001143888,-257.76797172,0.0001,2]
[356171056,1742001143910,-190509.32762849,0.0001,2]
[356171057,1742001171357,362.03153926,9.474e-05,2]
[356171058,1742001189473,-1248.7964,9.9e-05,2]
[356171059,1742001189507,-217.2457,9.9e-05,2]
[356171060,1742001189539,-1572.127,9.9e-05,2]
[356171061,1742001189566,-2990.9689,9.9e-05,2]
[356171062,1742001189593,-606.0,0.0001,2]
[356171063,1742001189627,-2744.862,0.0001,2]
[356171064,1742001270332,1767.87,9.493e-05,2]
[356171065,1742001300214,2229.54,9.493e-05,2]
[356171066,1742001327979,1661.13,9.493e-05,2]
[356171067,1742001361428,250.0,9e-05,2]
[356171068,1742001373057,1678.65,9.557e-05,2]
[356171069,1742001374596,4945.64,9.493e-05,2]
[356171070,1742001432786,2033.83,9.493e-05,2]
[356171071,1742001481927,2000.0,9.546e-05,2]
[356171073,1742001689706,997.58,9.121e-05,2]
[356171074,1742001778172,1544.75,9.085e-05,2]
[356171076,1742001910514,250.0,9.077e-05,2]
[356171077,1742001920064,8080.16237165,9e-05,2]
[356171078,1742001984519,152.81,9.062e-05,2]
[356171080,1742002025194,169005.14579248,9.14e-05,2]
[356171082,1742002067312,1144.05,8.219e-05,2]
[356171083,1742002162173,1000.0,9.084e-05,2]
[356171084,1742002180155,2495.04,9.157e-05,2]
[356171085,1742002180633,893.32,9.084e-05,2]
[356171086,1742002181059,893.32,9.108e-05,2]
[356171087,1742002181635,893.32,9.132e-05,2]
[356171088,1742002181678,893.32,9.156e-05,2]
[356171089,1742002181728,893.32,9.18e-05,2]
[356171090,1742002181927,893.32,9.204e-05,2]
[356171091,1742002182357,893.32,9.228e-05,2]
[356171092,1742002182638,893.32,9.252e-05,2]
[356171093,1742002182852,893.32,9.276e-05,2]
[356171094,1742002183323,893.32,9.299e-05,2]
[356171095,1742002183523,893.32,9.323e-05,2]
[356171096,1742002183948,893.32,9.347e-05,2]
[356171097,1742002184167,893.32,9.371e-05,2]
[356171098,1742002184827,893.32,9.395e-05,2]
[356171099,1742002184863,893.32,9.419e-05,2]
[356171100,1742002185012,893.32,9.443e-05,2]
[356171101,1742002185433,893.32,9.467e-05,2]
[356171102,1742002185674,893.32,9.491e-05,2]
[356171103,1742002185888,893.32,9.515e-05,2]
[356171104,1742002186106,893.32,9.539e-05,2]
[356171106,1742002204901,-1000.0,9.58e-05,2]
[356171109,1742002205336,-3715.55005068,9.58e-05,2]
[356171110,1742002205379,-284.44994932,9.58e-05,2]
[356171111,1742002205411,-372.62953185,9.616e-05,2]
[356171116,1742002232249,-680.97754559,9.616e-05,2]
[356171117,1742002232262,-733.94,9.616e-05,2]
[356171118,1742002232276,-152.81,9.628e-05,2]
[356171119,1742002232288,-1053.60707743,9.758e-05,2]
[356171120,1742002232299,-291.7658,9.8e-05,2]
[356171121,1742002232310,-1116.62624285,9.828e-05,2]
[356171122,1742002232321,-186.67,9.845e-05,2]
[356171123,1742002232331,-5522.27827649,9.89e-05,2]
[356171124,1742002232341,-150.0,9.899e-05,2]
[356171125,1742002232351,-2500.0,9.9e-05,2]
[356171126,1742002232361,-1856.8108,9.9e-05,2]
[356171127,1742002232371,-64481.51425754,9.9e-05,2]
[356171128,1742002232383,-628.42,9.9e-05,2]
[356171129,1742002232395,-20896.49504246,9.9e-05,2]
[356171130,1742002232404,-833.5274,9.9e-05,2]
[356171131,1742002232414,-35158.83513623,9.9e-05,2]
[356171132,1742002232443,-2208.97184433,9.9e-05,2]
[356171133,1742002232462,-104.95351944,9.9e-05,2]
[356171134,1742002232476,-367.6138,9.9e-05,2]
[356171135,1742002232487,-2517.4522,9.9e-05,2]
[356171136,1742002232497,-1119.66,9.9e-05,2]
[356171137,1742002232507,-941.38,9.9e-05,2]
[356171138,1742002232517,-9995.97,9.9e-05,2]
[356171139,1742002232527,-2677.4074,9.9e-05,2]
[356171140,1742002232537,-2500.0,9.9e-05,2]
[356171141,1742002232547,-905.9391,9.9e-05,2]
[356171142,1742002232557,-1053.60707743,9.9e-05,2]
[356171143,1742002232566,-489.10413155,9.973e-05,2]
[356171144,1742002232576,-160.35509026,9.973e-05,2]
[356171145,1742002232587,-151.388378,9.973e-05,2]
[356171146,1742002232597,-300.0,9.98e-05,2]
[356171147,1742002232607,-996.27,9.999e-05,2]
[356171148,1742002232616,-500.0,9.999e-05,2]
[356171150,1742002232626,-544.0,0.0001,2]
[356171152,1742002232636,-44939.46421212,0.0001,2]
[356171164,1742002232812,-8278.78791651,0.0001,2]
[356171166,1742002232835,-1240.95878,0.0001,2]
[356171167,1742002232847,-447.46047696,0.0001,2]
[356171168,1742002232859,-941.96454601,0.0001,2]
[356171169,1742002232878,-413.21193929,0.0001,2]
[356171170,1742002232890,-3056.0375105,0.0001,2]
[356171175,1742002238159,-490.09793055,9.962e-05,2]
[356171176,1742002238172,-775.88,9.962e-05,2]
[356171177,1742002238248,-423.34,9.962e-05,2]
[356171195,1742002239123,-344.68206945,9.962e-05,2]
[356171196,1742002239133,-1780.31793055,0.0001,2]
[356171197,1742002239149,-6725.4616176,0.0001,2]
[356171198,1742002239161,-614.6374616,0.0001,2]
[356171199,1742002239173,-12097.36456443,0.0001,2]
[356171203,1742002240442,-1369.97507927,0.0001,2]
[356171204,1742002240474,-3150.11392817,0.0001,2]
[356171205,1742002240485,-1034.6788,0.0001,2]
[356171206,1742002240546,-2335.29685159,0.0001,2]
[356171207,1742002240557,-47312.4961956,0.0001,2]
[356171208,1742002240569,-7901.67657273,0.0001,2]
[356171209,1742002240581,-643.47365204,0.0001,2]
[356171210,1742002240592,-1030.01320323,0.0001,2]
[356171211,1742002240603,-328.77821848,0.0001,2]
[356171212,1742002240805,-415.405,0.0001,2]
[356171213,1742002240817,-223054.61984163,0.0001,2]
[356171214,1742002240827,-132565.4778585,0.0001,2]
[356171215,1742002240837,-500.22597332,0.0001,2]
[356171216,1742002240847,-1000.0,0.0001,2]
[356171217,1742002240857,-1000.0,0.0001,2]
[356171218,1742002240866,-1000.0,0.0001,2]
[356171219,1742002240877,-1000.0,0.0001,2]
[356171220,1742002240886,-1000.0,0.0001,2]
[356171221,1742002240895,-855.73939354,0.0001,2]
[356171222,1742002240904,-90238.73201314,0.0001,2]
[356171223,1742002240916,-5663.00549854,0.0001,2]
[356171224,1742002240927,-13351.90983459,0.0001,2]
[356171225,1742002240938,-2548.80289556,0.0001,2]
[356171226,1742002240950,-1025.06710056,0.0001,2]
[356171227,1742002240962,-2467.30921759,0.0001,2]
[356171228,1742002240974,-609.5,0.0001,2]
[356171229,1742002240984,-582.32734927,0.0001,2]
[356171230,1742002240996,-1970.66420879,0.0001,2]